bitfinex/quotes_SOLUSD_20250209
["timestamp","ask_amount","ask_price","bid_price","bid_amount"]
[1739128839761,4.5117,199.33,199.32,15.09548105]
[1739128840051,5.5117,199.33,199.32,15.09548105]
[1739128840441,1.0,199.33,199.32,15.09548105]
[1739128840950,4.5117,199.33,199.32,15.09548105]
[1739128841456,5.5117,199.33,199.32,15.09548105]
[1739128841758,4.5117,199.33,199.32,15.09548105]
[1739128841952,1.0,199.33,199.32,15.09548105]
[1739128842127,25.5112,199.36,199.32,15.09548105]
[1739128842326,25.5112,199.36,199.3,15.09548105]
[1739128842327,25.5112,199.36,199.35,15.09548105]
[1739128842527,38.92304853,199.36,199.35,15.09548105]
[1739128850264,8.7757,199.42,199.35,15.12548105]
[1739128850265,4.5107,199.39,199.35,15.12548105]
[1739128850460,3.5107,199.39,199.38,15.09548105]
[1739128850634,21.0,199.39,199.38,15.09548105]
[1739128851241,22.0,199.39,199.38,15.09548105]
[1739128851656,2.0,199.38,199.37,15.09548105]
[1739128851842,2.0,199.38,199.35,0.03]
[1739128851843,1.0,199.37,199.36,15.09548105]
[1739128852240,5.511,199.37,199.36,15.09548105]
[1739128852962,15.41184853,199.36,199.35,15.12548105]
[1739128854261,18.92304853,199.36,199.35,15.12548105]
[1739128854763,18.92304853,199.36,199.35,0.03]
[1739128856946,4.5112,199.36,199.35,15.12548105]
[1739128857262,5.5112,199.36,199.35,15.12548105]
[1739128861962,5.5105,199.4,199.35,15.12548105]
[1739128862160,4.5105,199.4,199.39,15.09548105]
[1739128863066,5.5105,199.4,199.39,15.09548105]
[1739128865048,21.0,199.4,199.39,15.09548105]
[1739128865745,22.0,199.4,199.39,15.09548105]
[1739128865939,25.5105,199.4,199.39,15.09548105]
[1739128866267,22.0,199.4,199.39,15.09548105]
[1739128866459,21.0,199.4,199.39,15.09548105]
[1739128866644,22.0,199.4,199.39,15.09548105]
[1739128867150,21.0,199.4,199.39,15.09548105]
[1739128868074,22.0,199.4,199.39,15.09548105]
[1739128868283,38.92234853,199.4,199.39,15.09548105]
[1739128871475,1.0,199.41,199.39,30.1909621]
[1739128871673,1.0,199.41,199.4,15.09548105]
[1739128871872,22.0,199.41,199.4,15.09548105]
[1739128872053,21.0,199.41,199.4,15.09548105]
[1739128872452,1.0,199.41,199.4,15.09548105]
[1739128875870,2.0,199.41,199.4,15.09548105]
[1739128876078,2.0,199.4,199.39,15.09548105]
[1739128876281,21.0,199.39,199.38,15.09548105]
[1739128877049,4.5107,199.39,199.38,15.09548105]
[1739128880074,21.0,199.38,199.37,15.09548105]
[1739128880280,1.0,199.37,199.36,15.09548105]
[1739128880790,21.0,199.37,199.36,15.09548105]
[1739128881454,24.511,199.37,199.36,15.09548105]
[1739128881784,1.0,199.36,199.35,15.12548105]
[1739128881978,2.0,199.36,199.35,15.12548105]
[1739128883281,3.5112,199.36,199.35,15.12548105]
[1739128883587,25.511,199.37,199.35,15.12548105]
[1739128883879,38.92284853,199.37,199.36,15.09548105]
[1739128885364,3.5109,199.38,199.36,15.09548105]
[1739128885559,3.5109,199.38,199.37,15.09548105]
[1739128886173,4.5109,199.38,199.37,15.09548105]
[1739128886394,3.5109,199.38,199.37,15.09548105]
[1739128887085,23.5109,199.38,199.37,15.09548105]
[1739128887297,24.5109,199.38,199.37,15.09548105]
[1739128887499,25.5109,199.38,199.37,15.09548105]
[1739128887664,23.5109,199.38,199.37,15.09548105]
[1739128888205,20.0,199.38,199.37,15.09548105]
[1739128888896,21.0,199.38,199.37,15.09548105]
[1739128889063,22.0,199.38,199.37,15.09548105]
[1739128889264,20.0,199.38,199.37,15.09548105]
[1739128890396,21.0,199.38,199.37,15.09548105]
[1739128890586,24.5108,199.38,199.37,15.09548105]
[1739128891265,20.0,199.38,199.37,15.09548105]
[1739128891670,20.0,199.38,199.37,9.66040334]
[1739128892671,21.0,199.38,199.37,9.66040334]
[1739128893499,30.98739751,199.47,199.37,48.3020167]
[1739128893500,1.0,199.42,199.37,48.3020167]
[1739128893711,1.0,199.42,199.41,9.66040334]
[1739128894302,21.0,199.42,199.41,9.66040334]
[1739128894511,1.0,199.42,199.41,9.66040334]
[1739128895619,21.0,199.42,199.41,9.66040334]
[1739128896714,24.5101,199.42,199.41,9.66040334]
[1739128897417,25.5101,199.42,199.41,9.66040334]
[1739128897716,38.92194853,199.42,199.41,9.66040334]
[1739128906838,25.5101,199.42,199.41,9.66040334]
[1739128907035,20.0,199.42,199.41,9.66040334]
[1739128907242,1.0,199.44,199.41,9.66040334]
[1739128907406,1.0,199.44,199.43,9.66040334]
[1739128907924,0.063,199.45,199.43,9.66040334]
[1739128908130,1.0,199.46,199.44,9.66040334]
[1739128908329,1.0,199.46,199.45,9.66040334]
[1739128908537,20.0,199.47,199.45,9.66040334]
[1739128908835,20.0,199.47,199.46,9.66040334]
[1739128909534,20.063,199.47,199.46,9.66040334]
[1739128911632,1.0,199.5,199.46,48.3020167]
[1739128911831,3.5085,199.51,199.49,48.3020167]
[1739128912017,3.5085,199.51,199.5,48.3020167]
[1739128912411,20.0,199.51,199.5,48.3020167]
[1739128912617,21.0,199.51,199.5,48.3020167]
[1739128913132,1.0,199.53,199.5,48.3020167]
[1739128913309,1.0,199.53,199.52,9.66040334]
[1739128913505,17.92024853,199.53,199.52,9.66040334]
[1739128913839,18.92024853,199.53,199.52,9.66040334]
[1739128918846,15.41184853,199.52,199.43,1.6262]
[1739128919016,15.41184853,199.52,199.51,9.66040334]
[1739128919218,18.92024853,199.52,199.51,9.66040334]
[1739128919612,18.92024853,199.52,199.5,9.66040334]
[1739128919613,14.41184853,199.51,199.5,9.66040334]
[1739128920647,15.41184853,199.51,199.5,9.66040334]
[1739128921547,18.92034853,199.51,199.5,9.66040334]
[1739128922037,20.0,199.48,199.47,9.66040334]
[1739128922239,21.0,199.48,199.47,9.66040334]
[1739128922438,1.0,199.46,199.45,9.66040334]
[1739128922736,15.41184853,199.46,199.45,9.66040334]
[1739128922951,1.0,199.45,199.44,9.66040334]
[1739128923727,4.5096,199.45,199.44,9.66040334]
[1739128924345,18.92144853,199.45,199.44,9.66040334]
[1739128924521,14.41184853,199.44,199.43,9.66040334]
[1739128925145,15.41184853,199.44,199.43,9.66040334]
[1739128926021,18.92164853,199.44,199.43,9.66040334]
[1739128930249,1.0,199.44,199.43,9.66040334]
[1739128930432,2.0,199.45,199.43,9.66040334]
[1739128930635,3.5096,199.45,199.44,9.66040334]
[1739128930942,4.5096,199.45,199.44,9.66040334]
[1739128931131,5.5096,199.45,199.44,9.66040334]
[1739128934621,1.0,199.44,199.43,9.66040334]
[1739128934827,14.41184853,199.44,199.43,9.66040334]
[1739128935027,13.41184853,199.43,199.41,0.03]
[1739128935231,13.41184853,199.43,199.42,9.66040334]
[1739128935721,17.92184853,199.43,199.42,15.09226005]
[1739128935926,33.41184853,199.42,199.41,15.12226005]
[1739128936139,35.41184853,199.42,199.41,0.03]
[1739128937633,38.92194853,199.42,199.41,0.03]
[1739128938532,39.6743258,199.42,199.39,15.09226005]
[1739128938731,34.41184853,199.38,199.37,15.12226005]
[1739128938935,35.41184853,199.38,199.37,0.03]
[1739128939528,35.41184853,199.38,199.37,15.12226005]
[1739128939731,38.92264853,199.38,199.37,15.12226005]
[1739128941229,38.92264853,199.38,199.37,0.03]
[1739128943248,38.92264853,199.38,199.37,15.12226005]
[1739128945853,38.92264853,199.38,199.37,0.03]
[1739128947338,46.29358306,199.38,199.37,0.03]
[1739128948256,2.0,199.3,199.29,15.09226005]
[1739128948450,15.41184853,199.3,199.29,15.09226005]
[1739128948759,1.0,199.22,199.2,15.09226005]
[1739128949137,18.92554853,199.22,199.18,0.03]
[1739128949334,18.92554853,199.22,199.21,15.12226005]
[1739128950454,18.56594853,199.22,199.21,15.12226005]
[1739128951630,17.53274853,199.22,199.21,15.12226005]
[1739128952256,17.53274853,199.22,199.21,0.03]
[1739128952456,15.60504853,199.22,199.21,0.03]
[1739128953155,14.56974853,199.22,199.21,0.03]
[1739128954462,13.95054853,199.22,199.21,0.03]
[1739128959263,13.95054853,199.22,199.21,9.71081389]
[1739128959471,4.5137,199.22,199.21,9.71081389]
[1739128959645,1.0,199.22,199.21,9.71081389]
[1739128959844,21.0,199.22,199.21,9.71081389]
[1739128960639,34.41184853,199.22,199.21,9.71081389]
[1739128961042,34.47484853,199.22,199.21,9.71081389]
[1739128961674,34.47484853,199.22,199.21,15.15240688]
[1739128962966,33.87264853,199.22,199.21,15.15240688]
[1739128963358,33.08464853,199.22,199.21,15.15240688]
[1739128964770,36.59834853,199.22,199.21,15.15240688]
[1739128965475,0.063,199.22,199.21,15.15240688]
[1739128966578,36.98854853,199.22,199.21,15.15240688]
[1739128967391,36.98854853,199.22,199.21,0.03]
[1739128970260,13.41184853,199.21,199.2,14.65240688]
[1739128971283,16.92564853,199.21,199.2,14.65240688]
[1739128972577,47.02564853,199.21,199.2,14.65240688]
[1739128976179,16.92564853,199.21,199.2,14.65240688]
[1739128977992,47.02564853,199.21,199.2,14.65240688]
[1739128978376,47.02564853,199.21,199.19,15.12240688]
[1739128979787,16.92564853,199.21,199.2,15.12240688]
[1739128982301,16.92564853,199.21,199.19,15.12240688]
[1739128982598,43.51184853,199.2,199.19,15.12240688]
[1739128983590,47.02584853,199.2,199.19,15.12240688]
[1739128984483,16.92584853,199.2,199.19,15.15240688]
[1739128987593,0.063,199.21,199.19,48.4104758]
[1739128987800,0.063,199.21,199.2,48.3804758]
[1739128989803,0.063,199.21,199.2,30.23093694]
[1739128996979,0.063,199.21,199.2,28.23093694]
[1739128997683,0.063,199.22,199.21,15.11546847]
[1739128998278,3.5131,199.25,199.21,15.11546847]
[1739128998479,3.5131,199.25,199.24,15.11546847]
[1739128998681,3.5128,199.27,199.24,15.11546847]
[1739128998882,3.5121,199.31,199.26,15.11546847]
[1739128999122,3.5121,199.31,199.21,1.5362]
[1739128999123,3.5121,199.31,199.3,15.11546847]
[1739128999410,16.92394853,199.31,199.3,15.11546847]
[1739129003614,33.41184853,199.27,199.2,15.14546847]
[1739129003800,13.41184853,199.26,199.2,15.14546847]
[1739129004022,20.0,199.23,199.2,15.14546847]
[1739129004331,20.0,199.23,199.2,0.03]
[1739129004813,3.5137,199.22,199.2,0.03]
[1739129005020,3.5137,199.22,199.21,15.11546847]
[1739129008230,20.0,199.22,199.21,15.11546847]
[1739129009527,23.5137,199.22,199.21,15.11546847]
[1739129010694,23.5767,199.22,199.21,15.11546847]
[1739129011600,23.5767,199.22,199.21,9.67637192]
[1739129016328,0.063,199.22,199.21,9.67637192]
[1739129022414,0.063,199.22,199.21,9.70637192]
[1739129033942,38.9438,199.3,199.21,9.70637192]
[1739129034110,12.356,199.3,199.29,9.67637192]
[1739129034309,16.98704853,199.3,199.29,9.17637192]
[1739129038333,47.08704853,199.3,199.29,9.17637192]
[1739129038537,16.98704853,199.3,199.29,9.17637192]
[1739129042646,23.5752,199.3,199.29,9.17637192]
[1739129042816,0.063,199.3,199.29,47.8818596]
[1739129043831,12.289,199.37,199.29,47.8818596]
[1739129044038,25.70084853,199.37,199.36,9.67637192]
[1739129045430,16.92284853,199.37,199.36,9.67637192]
[1739129048852,3.511,199.37,199.36,9.67637192]
[1739129049024,3.5108,199.38,199.36,9.67637192]
[1739129049227,3.5106,199.4,199.37,9.67637192]
[1739129049523,3.5106,199.4,199.39,9.67637192]
[1739129049742,23.5106,199.4,199.39,9.67637192]
[1739129050319,0.063,199.41,199.39,9.67637192]
[1739129050522,0.063,199.41,199.4,48.3818596]
[1739129050749,3.5733,199.41,199.4,48.3818596]
[1739129051334,3.5733,199.41,199.4,9.67637192]
[1739129052255,0.063,199.41,199.4,9.67637192]
[1739129053341,20.0,199.39,199.38,9.67637192]
[1739129054449,23.5107,199.39,199.38,9.67637192]
[1739129056631,36.92254853,199.39,199.36,9.67637192]
[1739129056834,20.0,199.36,199.35,9.67637192]
[1739129057034,20.0,199.35,199.34,9.67637192]
[1739129058134,33.41184853,199.35,199.34,9.67637192]
[1739129059064,36.92324853,199.35,199.34,9.67637192]
[1739129062256,8.8397,199.39,199.34,9.67637192]
[1739129062257,0.063,199.39,199.34,9.67637192]
[1739129062569,0.063,199.39,199.38,9.67637192]
[1739129063469,3.511,199.37,199.36,9.67637192]
[1739129065673,16.92284853,199.37,199.36,9.67637192]
[1739129069253,3.5738,199.39,199.36,9.67637192]
[1739129069447,3.5738,199.39,199.38,9.67637192]
[1739129069839,16.98564853,199.39,199.38,9.67637192]
[1739129070376,13.41184853,199.38,199.36,9.67637192]
[1739129070868,33.41184853,199.37,199.36,9.67637192]
[1739129071242,36.92284853,199.37,199.36,9.67637192]
[1739129073074,3.5737,199.39,199.36,9.67637192]
[1739129073260,0.063,199.39,199.38,9.67637192]
[1739129073473,0.063,199.39,199.38,48.3818596]
[1739129076274,0.063,199.41,199.38,48.3818596]
[1739129076575,0.063,199.41,199.4,48.3818596]
[1739129078649,0.063,199.42,199.4,48.3818596]
[1739129078845,0.063,199.42,199.41,9.67637192]
[1739129081079,13.47484853,199.42,199.41,9.67637192]
[1739129082363,16.98494853,199.42,199.41,9.67637192]
[1739129083054,16.98494853,199.42,199.4,9.67637192]
[1739129084281,16.98494853,199.42,199.41,9.67637192]
[1739129089295,0.063,199.42,199.41,9.67637192]
[1739129090287,0.063,199.44,199.41,9.67637192]
[1739129090602,20.063,199.44,199.43,9.67637192]
[1739129094087,0.063,199.44,199.43,9.67637192]
[1739129094390,0.063,199.47,199.43,9.67637192]
[1739129094691,0.063,199.47,199.46,9.67637192]
[1739129094894,20.063,199.47,199.46,9.67637192]
[1739129095191,33.47484853,199.47,199.46,9.67637192]
[1739129096407,36.98404853,199.47,199.46,9.67637192]
[1739129099006,23.5722,199.47,199.46,9.67637192]
[1739129099383,20.063,199.47,199.46,9.67637192]
[1739129099990,0.063,199.47,199.46,9.67637192]
[1739129100373,0.063,199.5,199.46,52.64306311]
[1739129100676,0.063,199.51,199.49,48.3818596]
[1739129100877,0.063,199.51,199.5,48.3818596]
[1739129103998,3.5701,199.59,199.5,51.8905596]
[1739129104201,3.5701,199.59,199.58,9.67637192]
[1739129105480,3.5701,199.59,199.56,9.67637192]
[1739129105481,33.41184853,199.58,199.56,9.67637192]
[1739129105706,20.0,199.56,199.5,38.70548768]
[1739129106003,13.41184853,199.55,199.5,38.70548768]
[1739129106302,13.41184853,199.55,199.54,9.67637192]
[1739129106506,33.41184853,199.55,199.52,9.67637192]
[1739129106893,33.41184853,199.55,199.53,9.67637192]
[1739129107703,13.41184853,199.53,199.52,9.67637192]
[1739129109209,16.92004853,199.53,199.52,9.67637192]
[1739129110707,20.0,199.51,199.5,9.67637192]
[1739129111321,13.41184853,199.5,199.47,9.67637192]
[1739129111498,33.41184853,199.47,199.46,9.70637192]
[1739129112310,36.92104853,199.47,199.46,9.70637192]
[1739129112686,36.92104853,199.47,199.46,0.03]
[1739129113200,36.92104853,199.47,199.46,9.70637192]
[1739129113582,36.92104853,199.47,199.46,15.11280018]
[1739129115030,20.0,199.51,199.46,15.11280018]
[1739129115213,33.41184853,199.51,199.5,15.08280018]
[1739129115587,33.41184853,199.51,199.5,30.16560036]
[1739129115790,20.0,199.51,199.5,30.16560036]
[1739129116992,20.0,199.51,199.5,15.08280018]
[1739129117320,36.92034853,199.51,199.5,15.08280018]
[1739129118711,23.5085,199.51,199.5,15.08280018]
[1739129118912,3.508,199.54,199.5,15.08280018]
[1739129119117,16.91984853,199.54,199.53,15.08280018]
[1739129120319,16.91984853,199.54,199.46,0.03]
[1739129120320,20.0,199.5,199.46,0.03]
[1739129120488,33.41184853,199.5,199.49,15.08280018]
[1739129121811,20.0,199.51,199.49,15.08280018]
[1739129122107,23.5086,199.51,199.5,15.08280018]
[1739129123914,16.92014853,199.53,199.5,15.08280018]
[1739129124091,16.92014853,199.53,199.52,15.08280018]
[1739129128817,16.92014853,199.53,199.51,15.08280018]
[1739129129028,33.41184853,199.5,199.49,15.08280018]
[1739129129727,36.92054853,199.5,199.49,15.08280018]
[1739129131333,23.5087,199.5,199.49,15.08280018]
[1739129131630,3.5082,199.53,199.49,15.08280018]
[1739129131805,36.92004853,199.53,199.52,15.08280018]
[1739129132616,13.41184853,199.52,199.51,15.08280018]
[1739129133524,16.92024853,199.52,199.51,15.08280018]
[1739129134628,16.92024853,199.52,199.5,15.08280018]
[1739129135805,33.41184853,199.49,199.48,15.08280018]
[1739129136215,13.41184853,199.48,199.46,0.03]
[1739129136729,36.92104853,199.47,199.46,0.03]
[1739129138306,36.92104853,199.47,199.46,15.11280018]
[1739129140848,3.5087,199.5,199.46,15.11280018]
[1739129141135,3.5087,199.5,199.49,15.08280018]
[1739129141935,16.92054853,199.5,199.49,15.08280018]
[1739129149640,16.92054853,199.5,199.49,9.65104886]
[1739129152569,13.41184853,199.49,199.47,9.65104886]
[1739129152837,13.41184853,199.49,199.46,9.68104886]
[1739129152838,20.0,199.47,199.46,9.68104886]
[1739129154019,23.5092,199.47,199.46,9.68104886]
[1739129159040,36.92104853,199.47,199.46,9.68104886]
[1739129159241,36.92104853,199.47,199.46,0.0001]
[1739129166958,67.7934258,199.47,199.46,0.0001]
[1739129167649,67.04104853,199.47,199.46,0.0001]
[1739129167845,36.92104853,199.47,199.46,0.0001]
[1739129170733,36.98404853,199.47,199.46,0.0001]
[1739129173255,33.67714962,199.47,199.46,0.0001]
[1739129173446,3.5722,199.47,199.46,9.65114886]
[1739129173646,0.063,199.47,199.46,9.65114886]
[1739129176857,20.063,199.47,199.46,9.65114886]
[1739129178775,36.98404853,199.47,199.46,9.65114886]
[1739129188373,0.063,199.47,199.46,9.65114886]
[1739129193072,16.98404853,199.47,199.46,9.65114886]
[1739129196780,13.47484853,199.47,199.46,9.65114886]
[1739129197668,0.063,199.47,199.46,9.65114886]
[1739129198086,16.98404853,199.47,199.46,0.0001]
[1739129199278,0.063,199.47,199.46,9.65114886]
[1739129199873,0.063,199.47,199.46,9.15114886]
[1739129200370,20.063,199.47,199.46,9.15114886]
[1739129200674,20.063,199.47,199.41,0.03]
[1739129200675,20.0,199.46,199.41,3.5402]
[1739129200881,20.0,199.46,199.45,9.65104886]
[1739129201676,0.063,199.47,199.45,9.65104886]
[1739129201849,0.063,199.47,199.46,9.65104886]
[1739129218486,13.47484853,199.47,199.45,0.03]
[1739129219188,33.41184853,199.46,199.45,0.03]
[1739129219784,36.92124853,199.46,199.45,0.03]
[1739129223204,44.29290156,199.46,199.45,0.03]
[1739129223695,45.54095896,199.46,199.45,0.03]
[1739129223898,55.19200782,199.46,199.45,0.0001]
[1739129224682,13.41184853,199.39,199.32,9.65104886]
[1739129224897,20.0,199.32,199.3,0.03]
[1739129225200,33.41184853,199.32,199.31,9.65104886]
[1739129226290,13.41184853,199.31,199.3,0.03]
[1739129226492,21.24203325,199.31,199.3,0.03]
[1739129226683,36.92394853,199.31,199.3,0.03]
[1739129227622,13.41184853,199.3,199.29,0.0001]
[1739129227805,30.68217315,199.3,199.29,0.0001]
[1739129227990,43.27848639,199.3,199.29,0.0001]
[1739129228194,37.84458888,199.3,199.29,0.0001]
[1739129228396,148.96458888,199.3,199.29,0.0001]
[1739129229785,20.0,199.27,199.25,0.02612112]
[1739129230125,33.41184853,199.26,199.25,0.02612112]
[1739129230803,33.21184853,199.26,199.25,0.02612112]
[1739129231105,36.72474853,199.26,199.25,0.02612112]
[1739129237325,33.21184853,199.26,199.25,9.67716998]
[1739129237913,31.20254472,199.35,199.25,9.67716998]
[1739129238223,23.5115,199.34,199.33,9.65104886]
[1739129238935,16.92334853,199.34,199.33,9.65104886]
[1739129239640,13.41184853,199.34,199.33,9.65104886]
[1739129240448,16.92334853,199.34,199.33,9.65104886]
[1739129241139,13.41184853,199.33,199.32,9.65104886]
[1739129242115,33.41184853,199.33,199.32,9.65104886]
[1739129244114,36.92354853,199.33,199.32,9.65104886]
[1739129245841,33.41184853,199.33,199.32,9.65104886]
[1739129246349,16.92354853,199.33,199.32,9.65104886]
[1739129246714,13.41184853,199.33,199.32,9.65104886]
[1739129249429,20.0,199.36,199.32,9.65104886]
[1739129249638,20.0,199.36,199.35,9.65104886]
[1739129249945,13.41184853,199.35,199.32,9.65104886]
[1739129250168,20.0,199.33,199.32,9.65104886]
[1739129251358,23.5117,199.33,199.32,9.65104886]
[1739129251736,20.063,199.33,199.32,9.65104886]
[1739129253526,0.063,199.33,199.32,9.65104886]
[1739129257696,33.41184853,199.32,199.31,9.65104886]
[1739129258052,36.92374853,199.32,199.31,9.65104886]
[1739129259931,0.063,199.33,199.31,9.65104886]
[1739129260255,13.41184853,199.32,199.31,9.65104886]
[1739129261661,16.92374853,199.32,199.31,9.65104886]
[1739129263736,16.98674853,199.32,199.31,9.65104886]
[1739129265342,13.41184853,199.31,199.3,9.65104886]
[1739129266366,20.0,199.31,199.3,9.65104886]
[1739129266666,16.92394853,199.31,199.3,9.65104886]
[1739129269076,13.41184853,199.3,199.28,9.65104886]
[1739129269565,13.41184853,199.29,199.28,9.65104886]
[1739129269949,33.41184853,199.3,199.28,9.65104886]
[1739129270139,36.92404853,199.3,199.28,9.65104886]
[1739129271967,36.92404853,199.3,199.29,9.65104886]
[1739129272648,20.0,199.3,199.29,9.65104886]
[1739129274079,36.92404853,199.3,199.29,9.65104886]
[1739129278061,13.41184853,199.29,199.26,0.03]
[1739129278273,20.0,199.27,199.26,9.68104886]
[1739129280256,23.5128,199.27,199.26,9.68104886]
[1739129281378,36.92464853,199.27,199.26,9.68104886]
[1739129283764,16.92464853,199.27,199.26,9.68104886]
[1739129284560,36.92464853,199.27,199.26,9.68104886]
[1739129285070,20.0,199.27,199.26,9.68104886]
[1739129285264,3.5121,199.31,199.26,9.68104886]
[1739129285481,0.063,199.32,199.3,48.2552443]
[1739129285680,0.063,199.32,199.31,9.65104886]
[1739129289294,13.41184853,199.31,199.3,9.65104886]
[1739129289685,20.0,199.31,199.3,9.65104886]
[1739129289881,33.41184853,199.31,199.3,9.65104886]
[1739129290891,36.92394853,199.31,199.3,9.65104886]
[1739129291900,20.0,199.31,199.3,48.2552443]
[1739129293693,20.0,199.31,199.3,30.20423026]
[1739129294992,0.063,199.32,199.3,30.20423026]
[1739129295227,0.063,199.32,199.31,15.10211513]
[1739129295890,3.5749,199.32,199.31,15.10211513]
[1739129302001,0.063,199.32,199.31,15.10211513]
[1739129307118,3.5107,199.39,199.31,15.10211513]
[1739129307285,3.5107,199.39,199.38,15.10211513]
[1739129307612,16.92254853,199.39,199.38,15.10211513]
[1739129308120,3.5107,199.39,199.38,15.10211513]
[1739129308620,16.92254853,199.39,199.38,15.10211513]
[1739129310244,23.5107,199.39,199.38,15.10211513]
[1739129310516,3.5107,199.39,199.38,15.10211513]
[1739129311089,23.5107,199.39,199.38,15.10211513]
[1739129312521,36.92254853,199.39,199.38,15.10211513]
[1739129315242,23.5107,199.39,199.38,15.10211513]
[1739129315734,23.5107,199.39,199.38,9.65955184]
[1739129316133,3.5107,199.39,199.38,9.65955184]
[1739129316508,20.0,199.39,199.38,9.65955184]
[1739129317841,23.5107,199.39,199.38,9.65955184]
[1739129320920,20.0,199.39,199.38,9.65955184]
[1739129322835,20.063,199.39,199.38,9.65955184]
[1739129328032,23.5737,199.39,199.38,9.65955184]
[1739129332945,20.063,199.39,199.38,9.65955184]
[1739129338047,0.063,199.39,199.38,9.65955184]
[1739129338350,0.063,199.39,199.38,48.2977592]
[1739129338640,3.5101,199.43,199.38,48.2977592]
[1739129338836,23.5101,199.43,199.42,9.65955184]
[1739129342043,20.0,199.43,199.42,9.65955184]
[1739129342836,3.5725,199.46,199.42,9.65955184]
[1739129343028,3.5725,199.46,199.45,9.65955184]
[1739129345644,0.063,199.46,199.45,9.65955184]
[1739129370075,0.063,199.47,199.45,9.65955184]
[1739129370301,0.063,199.47,199.46,9.65955184]
[1739129372080,20.0,199.51,199.46,9.65955184]
[1739129372277,0.063,199.52,199.5,48.2977592]
[1739129372477,0.063,199.52,199.51,9.65955184]
[1739129376476,3.5714,199.52,199.51,9.65955184]
[1739129380185,0.063,199.52,199.51,9.65955184]
[1739129390974,0.063,199.54,199.51,13.16805184]
[1739129391202,0.063,199.54,199.53,9.65955184]
[1739129395293,0.063,199.59,199.53,14.16775184]
[1739129395485,0.063,199.59,199.58,9.65955184]
[1739129396303,0.063,199.59,199.58,48.2977592]
[1739129396498,0.063,199.61,199.6,48.2977592]
[1739129398596,0.063,199.61,199.6,9.65955184]
[1739129400340,0.063,199.61,199.6,48.2977592]
[1739129400489,0.063,199.62,199.6,48.2977592]
[1739129400687,0.063,199.62,199.61,9.65955184]
[1739129401785,0.063,199.64,199.61,9.65955184]
[1739129402119,0.063,199.64,199.62,9.65955184]
[1739129402603,0.063,199.64,199.63,9.65955184]
[1739129408027,0.063,199.66,199.63,9.65955184]
[1739129408210,0.063,199.66,199.65,9.65955184]
[1739129408594,0.063,199.69,199.65,9.65955184]
[1739129408798,0.063,199.69,199.68,48.2977592]
[1739129409016,3.5679,199.72,199.68,48.2977592]
[1739129409216,0.063,199.72,199.71,9.65955184]
[1739129413592,20.0,199.7,199.68,9.65955184]
[1739129413917,20.0,199.69,199.66,9.65955184]
[1739129414420,20.0,199.66,199.65,9.65955184]
[1739129414924,23.5059,199.66,199.65,9.65955184]
[1739129416223,3.505,199.71,199.65,9.65955184]
[1739129416420,13.41184853,199.7,199.69,9.65955184]
[1739129416624,0.03,199.66,199.61,1.0]
[1739129416829,0.03,199.66,199.63,1.0]
[1739129417029,3.505,199.71,199.63,1.75108548]
[1739129417243,3.5679,199.72,199.65,1.0]
[1739129417412,3.5679,199.72,199.66,1.0]
[1739129418035,0.063,199.72,199.71,9.65955184]
[1739129419805,23.5042,199.76,199.71,9.65955184]
[1739129420005,20.0,199.76,199.75,9.65955184]
[1739129420222,3.504,199.78,199.75,9.65955184]
[1739129420527,20.0,199.79,199.77,9.65955184]
[1739129420712,23.5036,199.79,199.78,9.65955184]
[1739129421226,3.5664,199.81,199.78,9.65955184]
[1739129421406,3.5664,199.81,199.8,48.2977592]
[1739129421603,0.063,199.81,199.8,30.05373274]
[1739129422122,0.063,199.85,199.8,30.05373274]
[1739129422318,20.063,199.85,199.84,15.02686637]
[1739129423122,0.063,199.85,199.84,15.02686637]
[1739129423319,20.063,199.85,199.84,15.02686637]
[1739129426107,23.5656,199.85,199.84,15.02686637]
[1739129430721,45.73394853,199.85,199.78,15.02686637]
[1739129430925,13.41184853,199.84,199.78,15.02686637]
[1739129431231,13.41184853,199.84,199.7,15.02686637]
[1739129431232,13.41184853,199.78,199.76,15.02686637]
[1739129431416,16.91564853,199.78,199.76,15.02686637]
[1739129432337,16.91564853,199.78,199.77,15.02686637]